[Event "FIDE CB Open 2022"]
[Site "Ceske Budejovice"]
[Date "2022.07.06"]
[Round "6.16"]
[White "Lacina, Adolf"]
[Black "Zauner, Christoph"]
[Result "1/2-1/2"]
[ECO "B22"]
[WhiteElo "2225"]
[BlackElo "1963"]
[Annotator "TA"]
[PlyCount "48"]
[EventDate "2022.07.01"]
[EventType "swiss"]
[EventCountry "CZE"]
[SourceTitle "playchess.com"]
[Source "ChessBase"]
[SourceQuality "1"]
[TimeControl "40/5400+30:1800+30"]

{[%evp 22,48,15,0,43,30,36,25,40,18,18,2,103,0,0,0,0,0,0,-2,125,25,28,0,0,0,0,0,0]} 1. e4 {[%emt 0:00:15]} c5 {[%emt 0:00:07]} 2. Nf3 {[%emt 0:00:16]} Nc6 {[%emt 0:00:14]} 3. c3 {[%emt 0:05:06]} d5 {[%emt 0:02:35]} 4. exd5 {[%emt 0:01:26]} Qxd5 {[%emt 0:00:06]} 5. d4 {[%emt 0:00:55]} Bg4 {[%emt 0:04:44]} 6. Be2 {[%emt 0:00:39]} e6 {[%emt 0:00:47]} 7. O-O {[%emt 0:02:01]} Nf6 {[%emt 0:09:08]} 8. h3 {[%emt 0:03:40]} Bh5 {[%emt 0:01:44]} 9. Be3 {[%emt 0:03:08]} cxd4 {[%emt 0:03:31]} 10. cxd4 {[%emt 0:00:30]} Be7 {[%emt 0:02:13]} 11. Nc3 {[%emt 0:01:36]} Qd8 {[%emt 0:03:52]} 12. Qb3 {[%emt 0:05:06]} a6 {[%emt 0:07:45] B22: Sicilian: 2 c3.} 13. d5 {[%emt 0:11:54]} ({Avoid the trap} 13. Qxb7 $2 Na5 14. Bb5+ Kf8 15. Qxa6 Rxa6 16. Bxa6 Bxf3 17. gxf3 g5 $19) 13... Na5 {[%emt 0:07:38] [#]} 14. Qa4+ $146 {[%emt 0:08:19]} ({Predecessor:} 14. Qb6 exd5 15. Rad1 Qxb6 16. Bxb6 Nc4 17. Bxc4 Bxf3 18. gxf3 dxc4 19. Rfe1 Kf8 20. Ne4 {0-1 (34) Pesic,N (2355)-Zalahoras,N Kavala 1995}) 14... b5 {[%emt 0:00:32] White has an edge.} 15. Qd4 {[%emt 0:03:23] Hoping for g4.} exd5 {[%emt 0:05:58]} 16. Rfd1 {[%emt 0:04:41] Black should prevent g4.} Nc4 {[%emt 0:18:35]} (16... Nc6 $11 17. Qd2 O-O) 17. Nxd5 {[%emt 0:21:17]} ({White should play} 17. g4 $16) 17... Qxd5 $11 {[%emt 0:03:27]} 18. Qxd5 {[%emt 0:03:06]} Nxd5 {[%emt 0:00:02]} 19. Rxd5 {[%emt 0:00:12]} Bxf3 {[%emt 0:06:24]} 20. Bxf3 {[%emt 0:01:14]} Rd8 {[%emt 0:01:45]} (20... Nxe3 $11 21. Rd3 (21. fxe3 O-O $11) 21... Nc2 22. Bc6+ Kf8) 21. Bd4 {[%emt 0:01:56]} (21. Rxd8+ $16 Kxd8 22. Rd1+ Kc7 23. Rc1) 21... O-O $1 {[%emt 0:02:04]} 22. Re1 {[%emt 0:02:00]} Bb4 {[%emt 0:00:45] The position is equal.} (22... Nd2 $2 23. Rxd8 Bxd8 24. Bc5 Nxf3+ 25. gxf3 $18) 23. Bc3 {[%emt 0:07:29]} Bxc3 {[%emt 0:03:15]} 24. bxc3 {[%emt 0:00:01]} Nd2 {[%emt 0:00:43] Weighted Error Value: White=0.42/Black=0.30} 1/2-1/2

[Event "FIDE CB Open 2022"]
[Site "Ceske Budejovice"]
[Date "2022.07.06"]
[Round "6.17"]
[White "Kovalskyi, Roman"]
[Black "Cuhra, Martin"]
[Result "0-1"]
[ECO "C55"]
[WhiteElo "2056"]
[BlackElo "2225"]
[Annotator "TA"]
[PlyCount "100"]
[EventDate "2022.07.01"]
[EventType "swiss"]
[EventCountry "CZE"]
[SourceTitle "playchess.com"]
[Source "ChessBase"]
[SourceQuality "1"]
[TimeControl "40/5400+30:1800+30"]

{[%evp 10,100,36,32,37,43,39,27,27,40,54,35,16,11,16,24,38,16,18,0,22,0,0,0,0,0,0,0,0,-12,-13,-11,-11,-11,-13,-9,-13,-41,-41,-101,-102,-88,-103,-113,-110,-106,-103,-133,-133,-196,-189,-487,-481,-466,-391,-516,-392,-3483,-1754,-29957,-29958,-29959,-29960,-29960,-29963,-29963,-29965,-29962,-29960,-29953,-6147,-5356,-2270,-29975,-29976,-29976,-29977,-29977,-29978,-29979,-29980,-29980,-29981,-29981,-29982,-29982,-29983,-29983,-29984,-29984,-29985,-29985,-29984]} 1. e4 {[%emt 0:00:14]} e5 {[%emt 0:00:51]} 2. Nf3 {[%emt 0:00:06]} Nc6 {[%emt 0:00:03]} 3. Bc4 {[%emt 0:00:06]} Nf6 {[%emt 0:00:06]} 4. d3 {[%emt 0:00:03]} Be7 {[%emt 0:00:53]} 5. O-O {[%emt 0:00:33]} d6 {[%emt 0:00:19]} 6. a4 {[%emt 0:00:12]} Be6 {[%emt 0:04:17] C55: Two Knights: 4 d3, 4 d4 exd4 5 e5 and Max Lange Attack.} 7. Bxe6 {[%emt 0:02:07]} fxe6 {[%emt 0:01:33]} 8. Re1 {[%emt 0:00:33] [#]} Qd7 $146 {[%emt 0:02:10] White has an edge.} ({Predecessor:} 8... O-O 9. c3 Qe8 10. Qb3 Nd8 11. d4 Nd7 12. Be3 Qh5 13. Nbd2 Kh8 14. a5 g5 {1-0 (50) Salimaki,J (2136)-Miettinen,T (2025) Helsinki 2019}) 9. c3 {[%emt 0:00:50]} h6 {[%emt 0:07:04]} 10. d4 {[%emt 0:02:50]} exd4 {[%emt 0:11:46]} 11. cxd4 {[%emt 0:00:33]} O-O {[%emt 0:00:22]} 12. Nc3 {[%emt 0:02:30]} Rad8 {[%emt 0:02:10]} 13. a5 {[%emt 0:04:30]} d5 $1 {[%emt 0:05:00]} 14. exd5 {[%emt 0:09:53]} exd5 {[%emt 0:01:24]} (14... Nxd5 $5 {[%cal Re7b4]} 15. Qd3 Rf6 $11) 15. Ne5 {[%emt 0:04:38]} Nxe5 {[%emt 0:12:32]} 16. dxe5 {[%emt 0:01:29]} Ne4 {[%emt 0:01:15]} (16... Ng4 $2 17. e6 Nxf2 18. exd7 $18) 17. Nxe4 {[%emt 0:00:17]} dxe4 {[%emt 0:00:02]} 18. Qxd7 {[%emt 0:14:33]} Rxd7 {[%emt 0:00:03]} 19. Be3 {[%emt 0:00:05]} Rd5 {[%emt 0:10:59]} 20. Bxa7 {[%emt 0:02:09]} Ra8 {[%emt 0:00:41]} 21. Be3 {[%emt 0:00:07]} Raxa5 {[%emt 0:08:52]} 22. Rxa5 {[%emt 0:27:53]} Rxa5 $11 {[%emt 0:00:08][%mdl 4096] Endgame KRB-KRB} 23. Bd2 {[%emt 0:00:15]} Rxe5 {[%emt 0:02:08]} 24. Bf4 {[%emt 0:00:29] Black converts the advantage convincingly.} ({Better is} 24. Kf1 $15) 24... Rb5 $17 {[%emt 0:03:16]} 25. Bxc7 {[%emt 0:09:50]} Rxb2 {[%emt 0:01:48]} 26. Kf1 {[%emt 0:03:24]} Bc5 {[%emt 0:01:06]} 27. Bg3 {[%emt 0:00:05]} Rb4 $1 {[%emt 0:00:51]} 28. Rd1 {[%emt 0:00:45]} Bd4 {[%emt 0:04:01]} 29. Bd6 {[%emt 0:05:58] [#]} (29. f3 $17) 29... Ra4 $1 $19 {[%emt 0:00:16]} 30. Re1 $2 {[%emt 0:05:42]} (30. f3) 30... Ra1 {[%emt 0:02:24]} 31. Rxa1 {[%emt 0:00:04]} Bxa1 {[%emt 0:00:02] KB-KB} 32. Bc5 {[%emt 0:00:51] [#]} Kf7 $1 {[%emt 0:02:00]} 33. f3 $2 {[%emt 0:01:27]} (33. Bb6 Ke6 34. Ke2) 33... exf3 {[%emt 0:00:21]} 34. gxf3 {[%emt 0:00:02]} Ke6 {[%emt 0:00:48]} 35. Ke2 {[%emt 0:01:20]} Kd5 {[%emt 0:00:26]} 36. Bf8 {[%emt 0:00:06]} Kc4 {[%emt 0:00:43]} 37. Ke3 {[%emt 0:00:26]} b5 {[%emt 0:00:26][%cal Bb7b5,Bb5b4,Bb4b3][%mdl 32]} 38. Kd2 {[%emt 0:01:03]} b4 {[%emt 0:00:22]} 39. Kc2 {[%emt 0:00:02]} Be5 {[%emt 0:00:57]} 40. f4 {[%emt 0:00:05]} Bf6 {[%emt 0:00:35]} (40... b3+ $142 41. Kb1 Bd4) 41. h3 {[%emt 0:30:58]} b3+ {[%emt 0:30:11] Black mates.} 42. Kd2 {[%emt 0:00:02]} Kd4 {[%emt 0:00:30]} 43. Bd6 {[%emt 0:00:07]} Ke4 {[%emt 0:00:43]} 44. h4 {[%emt 0:00:18]} h5 {[%emt 0:00:59]} 45. Kc1 {[%emt 0:00:32]} Kf5 {[%emt 0:00:29]} 46. Kb1 {[%emt 0:00:18]} Kg4 {[%emt 0:00:06]} 47. Be5 {[%emt 0:00:04]} Bxe5 {[%emt 0:00:55]} 48. fxe5 {[%emt 0:00:05]} Kf5 {[%emt 0:00:05]} (48... Kxh4 $2 49. e6 $18) 49. Kb2 {[%emt 0:00:03]} Kxe5 {[%emt 0:00:04]} 50. Kxb3 {[%emt 0:00:04]} Kf5 {[%emt 0:00:05] Weighted Error Value: White=0.52/Black=0.09 (flawless)} 0-1

[Event "FIDE CB Open 2022"]
[Site "Ceske Budejovice"]
[Date "2022.07.06"]
[Round "6.18"]
[White "Mostbauer, Maximilian"]
[Black "Vrchotka, Josef"]
[Result "1-0"]
[ECO "A05"]
[WhiteElo "2192"]
[BlackElo "1959"]
[Annotator "TA"]
[PlyCount "73"]
[EventDate "2022.07.01"]
[EventType "swiss"]
[EventCountry "CZE"]
[SourceTitle "playchess.com"]
[Source "ChessBase"]
[SourceQuality "1"]
[TimeControl "40/5400+30:1800+30"]

{[%evp 12,73,-9,-43,0,0,42,8,37,37,48,37,60,29,17,28,50,12,13,2,1,4,14,8,10,1,12,5,8,0,0,-12,10,0,0,0,0,0,10,0,32,32,93,87,170,169,169,166,150,166,257,245,330,317,461,433,12840,12840,12840,12841,12839,0,12842,12841]} 1. d4 {[%emt 0:00:06]} Nf6 {[%emt 0:00:09]} 2. Nf3 {[%emt 0:00:10]} g6 {[%emt 0:00:23]} 3. g3 {[%emt 0:00:05]} Bg7 {[%emt 0:00:27]} 4. Bg2 {[%emt 0:00:08]} O-O {[%emt 0:00:11]} 5. O-O {[%emt 0:00:05]} d5 {[%emt 0:00:07]} 6. b3 {[%emt 0:00:08]} c5 {[%emt 0:00:39]} 7. Bb2 $1 {[%emt 0:00:06] 7.Bb2 is better than 7.e3.} Nc6 {[%emt 0:00:30] A05: Réti Opening: 1 Nf3 Nf6.} 8. e3 {[%emt 0:03:37]} Re8 {[%emt 0:03:29]} 9. Nbd2 {[%emt 0:05:01] [#]} Bf5 $146 {[%emt 0:03:05] The position is equal.} ({Predecessor:} 9... cxd4 10. exd4 Bf5 11. a3 Rc8 12. Rc1 Bh6 13. h3 Ne4 14. g4 Be6 15. Qe2 f5 16. Rcd1 Qd7 17. Nxe4 fxe4 18. Ne1 {½-½ (18) Majer,J (2240)-Novosadova,K (2184) Czech Republic 2018}) 10. dxc5 {[%emt 0:18:12]} e5 {[%emt 0:02:24] Prevents Nd4.} 11. a3 {[%emt 0:03:37]} a5 {[%emt 0:04:08]} 12. b4 {[%emt 0:11:36]} (12. c4 {keeps more tension.} Bd3 13. Re1 dxc4 14. Nxc4 Bxc4 15. bxc4 Nd7 16. Ng5) 12... axb4 {[%emt 0:01:43]} 13. axb4 {[%emt 0:00:37]} Nxb4 {[%emt 0:06:46]} 14. Bxe5 {[%emt 0:03:43]} Bxc2 {[%emt 0:07:22] [#]} 15. Rxa8 $1 {[%emt 0:03:09]} Qxa8 {[%emt 0:01:12]} 16. Qa1 {[%emt 0:00:16] Hoping for Qc3.} Qxa1 {[%emt 0:03:38]} 17. Rxa1 {[%emt 0:00:28]} Nc6 {[%emt 0:02:48]} 18. Bd4 {[%emt 0:18:39]} Ne4 {[%emt 0:03:32]} 19. Bxg7 {[%emt 0:03:49]} Kxg7 {[%emt 0:01:56]} 20. Ra2 {[%emt 0:04:04]} Bd3 {[%emt 0:02:52]} 21. Nxe4 {[%emt 0:02:11]} Bxe4 {[%emt 0:02:45]} 22. Nd4 {[%emt 0:05:03]} Nxd4 {[%emt 0:00:47]} 23. exd4 {[%emt 0:00:23]} Bxg2 {[%emt 0:02:26]} 24. Kxg2 $11 {[%emt 0:00:33][%mdl 4096] Endgame KR-KR} Re4 {[%emt 0:01:04]} 25. Ra4 {[%emt 0:01:18]} h5 {[%emt 0:05:16]} 26. h4 {[%emt 0:01:21]} Kf6 {[%emt 0:04:12]} (26... Kf8 $14) 27. Rb4 $16 {[%emt 0:00:13]} Kg7 {[%emt 0:02:29]} (27... Re7 $16) 28. Kf1 $18 {[%emt 0:01:37]} (28. Rxb7 Rxd4 29. Rd7 Kf6 $11) 28... Kf8 {[%emt 0:00:44] [#]} 29. f3 $1 {[%emt 0:00:47]} ({Don't do} 29. Rxb7 $6 Rxd4 30. Rd7 Rd2 $14) 29... Re7 {[%emt 0:03:26]} 30. Rb6 {[%emt 0:01:30]} Rd7 {[%emt 0:00:33]} (30... Ke8 {was called for.} 31. Kf2 Kd8) 31. Kf2 {[%emt 0:00:11] Strongly threatening Ke3.} Kg7 {[%emt 0:12:53]} 32. Ke3 {[%emt 0:00:47]} Re7+ {[%emt 0:01:49]} (32... f6 {was necessary.} 33. Kf2 Kf7) 33. Kf4 {[%emt 0:00:58]} Re6 {[%emt 0:08:46]} (33... Kh8 $142 34. Rf6 Kg7) 34. Rxe6 {[%emt 0:02:41]} fxe6 {[%emt 0:00:03]} 35. Ke5 {[%emt 0:00:06]} Kf7 {[%emt 0:00:23]} 36. g4 $2 {[%emt 0:00:29]} (36. Kd6 $18 {Threatens to win with f4.} Kf6 37. f4 (37. Kc7 e5 $16)) 36... Ke7 $2 {[%emt 0:00:39][%mdl 8192]} (36... g5 $11 37. gxh5 (37. hxg5 $2 h4 $19) 37... gxh4) 37. g5 {[%emt 0:00:59] Weighted Error Value: White=0.22 (precise) /Black=0.31} 1-0

[Event "FIDE CB Open 2022"]
[Site "Ceske Budejovice"]
[Date "2022.07.06"]
[Round "6.19"]
[White "Radovic, Stefan"]
[Black "Vybiral, Zdenek"]
[Result "0-1"]
[ECO "B22"]
[WhiteElo "2018"]
[BlackElo "2143"]
[Annotator "TA"]
[PlyCount "74"]
[EventDate "2022.07.01"]
[EventType "swiss"]
[EventCountry "CZE"]
[SourceTitle "playchess.com"]
[Source "ChessBase"]
[SourceQuality "1"]
[TimeControl "40/5400+30:1800+30"]

{[%evp 21,74,18,24,0,40,9,8,-61,-60,-55,-69,-57,-83,-120,-78,-59,-60,-82,35,-103,-25,-35,0,0,0,-58,0,0,49,35,53,35,29,-114,-101,-96,-110,-386,-387,-476,-464,-507,-508,-1196,-1191,-1156,-1154,-1345,-1300,-6902,-6470,-6299,-6258,-5414,-5322]} 1. e4 {[%emt 0:00:06][%cal Be2e4,Be4e5][%mdl 32]} c5 {[%emt 0:00:12]} 2. c3 {[%emt 0:00:08]} Nf6 {[%emt 0:00:36]} 3. e5 {[%emt 0:00:05]} Nd5 {[%emt 0:00:04]} 4. Nf3 {[%emt 0:00:14]} e6 {[%emt 0:00:18]} 5. d4 {[%emt 0:01:24]} cxd4 {[%emt 0:00:07]} 6. cxd4 {[%emt 0:00:09]} b6 {[%emt 0:00:20]} 7. Nc3 {[%emt 0:01:48]} Nxc3 {[%emt 0:00:19]} 8. bxc3 {[%emt 0:00:10]} Qc7 {[%emt 0:00:15]} 9. Bd2 {[%emt 0:00:42]} Be7 {[%emt 0:01:18]} 10. Bd3 {[%emt 0:00:44]} Ba6 {[%emt 0:00:43]} 11. Bxa6 {[%emt 0:02:56]} Nxa6 {[%emt 0:00:06][%cal Bb8a6,Ba6c7,Bc7d5][%mdl 32]} 12. O-O {[%emt 0:00:34] B22: Sicilian: 2 c3.} (12. Qe2 $5 {[%cal Re2a6]} Nb8 13. O-O $14) 12... Qc4 {[%emt 0:08:49] Inhibits Qe2.} 13. Re1 {[%emt 0:16:41] [#]} Nc7 $146 {[%emt 0:08:13]} ({Predecessor:} 13... Rc8 14. Re4 f5 15. exf6 Bxf6 16. Qb3 O-O 17. Rae1 Rc6 18. h4 Nc7 19. h5 Nd5 {½-½ (36) Vatter,H (2121)-Huber,P (1620) Playchess.com INT 2020}) 14. Re4 {[%emt 0:26:24]} (14. Qb3 $11 Qxb3 15. axb3) 14... Nd5 $15 {[%emt 0:02:51]} 15. Rg4 {[%emt 0:03:05]} g6 {[%emt 0:00:33]} 16. h4 {[%emt 0:10:35]} Rc8 {[%emt 0:23:01]} 17. a4 {[%emt 0:17:50]} Qd3 {[%emt 0:04:47]} 18. Ne1 {[%emt 0:02:20]} Qf5 {[%emt 0:01:58]} 19. Rc1 {[%emt 0:00:46]} Rc4 {[%emt 0:02:30] Black is more active.} (19... h5 $17 20. Rg3 Bxh4) 20. Qb3 {[%emt 0:02:35]} (20. Qe2 $14 {keeps the upper hand.} Rxa4 21. c4) 20... Qxg4 {[%emt 0:04:28]} (20... Rxc3 $1 $17 21. Rxc3 Nxc3 22. Qxc3 Qxg4 23. Qc8+ Bd8) 21. Qxc4 $11 {[%emt 0:00:13]} O-O {[%emt 0:00:06]} 22. Nf3 {[%emt 0:01:30]} Bxh4 {[%emt 0:11:39]} 23. Qd3 {[%emt 0:00:19]} (23. Qb5 $11) 23... f6 $40 {[%emt 0:03:07][%mdl 128] White needs to defend precisely.} ({Black should try} 23... Nf4 $15 24. Bxf4 Qxf4) 24. Re1 {[%emt 0:01:01] Black must now prevent Re4.} Bg5 {[%emt 0:04:49]} (24... fxe5 $11 25. dxe5 Nf4 26. Bxf4 Rxf4) 25. Re4 $1 $14 {[%emt 0:02:45]} Qh5 {[%emt 0:00:06] Hoping for ...Bxd2.} 26. c4 {[%emt 0:00:42]} Bxd2 {[%emt 0:04:55]} 27. Qxd2 {[%emt 0:03:32]} (27. cxd5 $11 {was the only way to keep the balance.} Bb4 28. dxe6 dxe6 29. d5) 27... Qf5 $17 {[%emt 0:00:19]} 28. Rh4 {[%emt 0:00:28] [#]} g5 $1 {[%emt 0:00:13][%cal Bg6g5,Bg5g4][%mdl 32]} 29. Rh3 {[%emt 0:04:05][%mdl 8192] [#] Loses the game.} (29. Rh6 $17 Nf4 30. Rxf6) 29... Nf4 $1 $19 {[%emt 0:00:45]} 30. Rg3 {[%emt 0:00:25]} Nh5 {[%emt 0:03:53] Black is clearly winning.} 31. Rh3 {[%emt 0:01:11]} g4 $1 {[%emt 0:00:32][%csl LRf3,LRh3]} 32. Nh4 {[%emt 0:00:28]} (32. Rxh5 $142 Qxh5 33. Ne1) 32... Qb1+ {[%emt 0:00:12]} 33. Kh2 {[%emt 0:00:05]} gxh3 {[%emt 0:01:03]} 34. Qh6 {[%emt 0:00:06] [#]} hxg2 $1 {[%emt 0:01:21]} 35. Kxg2 {[%emt 0:00:09]} (35. Nxg2 Qd1) 35... Qe4+ {[%emt 0:00:20]} 36. Kh3 {[%emt 0:00:03]} Nf4+ {[%emt 0:00:47]} 37. Kh2 {[%emt 0:00:13]} fxe5 {[%emt 0:01:19] Weighted Error Value: White=0.96/Black=0.20 (precise)} 0-1

[Event "FIDE CB Open 2022"]
[Site "Ceske Budejovice"]
[Date "2022.07.06"]
[Round "6.20"]
[White "Simunek, Jakub Simon"]
[Black "Panjer, Sidney"]
[Result "1/2-1/2"]
[ECO "C45"]
[WhiteElo "1887"]
[BlackElo "2140"]
[Annotator "TA"]
[PlyCount "85"]
[EventDate "2022.07.01"]
[EventType "swiss"]
[EventCountry "CZE"]
[SourceTitle "playchess.com"]
[Source "ChessBase"]
[SourceQuality "1"]
[TimeControl "40/5400+30:1800+30"]

{[%evp 14,85,0,-30,-7,-59,-79,-78,-97,-100,-45,-104,-95,-93,-100,-93,-93,-85,-91,-86,-95,-141,-135,-153,-145,-148,-133,-146,-136,-155,-68,-72,-80,-96,-92,-112,-6,-10,0,-68,-61,-45,0,0,0,-31,0,-1,0,0,0,0,0,0,0,0,0,0,0,0,0,0,0,0,0,0,0,0,0,0,0,0,0,0]} 1. e4 {[%emt 0:03:12]} e5 {[%emt 0:00:07]} 2. Nf3 {[%emt 0:00:18]} Nc6 {[%emt 0:00:34]} 3. d4 {[%emt 0:00:35]} exd4 {[%emt 0:00:00]} 4. Nxd4 {[%emt 0:00:05]} Nf6 {[%emt 0:00:00]} 5. Nxc6 {[%emt 0:00:21]} bxc6 {[%emt 0:00:00]} 6. e5 {[%emt 0:00:05]} Qe7 {[%emt 0:00:01]} 7. Qe2 {[%emt 0:00:07]} Nd5 {[%emt 0:00:03]} 8. h4 {[%emt 0:01:18]} (8. c4 $5 {[%cal Rc4d5]} Nb6 9. b3 $11) 8... a5 {[%emt 0:04:32] C45: Scotch Game.} 9. Bg5 {[%emt 0:06:32]} (9. g3 $11) 9... Qe6 $15 {[%emt 0:08:13]} 10. g3 {[%emt 0:10:00]} Ba6 {[%emt 0:13:58] Black is better.} 11. c4 {[%emt 0:00:07]} Nb6 {[%emt 0:01:05]} ({Better is} 11... Bb4+ $17 12. Nd2 O-O) 12. Nd2 {[%emt 0:02:34] [#]} (12. b3 $1 $15) 12... Nxc4 $146 {[%emt 0:04:29][%mdl 512]} ({Predecessor:} 12... Bb4 13. Bh3 Qxc4 14. Qxc4 Nxc4 15. O-O-O Nxd2 16. Bxd2 Bxd2+ 17. Rxd2 Rd8 18. Rhd1 Bc8 {0-1 (59) Kaufman,R (2255)-Diaz Perez,M (2459) Chess.com INT 2021}) 13. Nxc4 {[%emt 0:05:03] aiming for 0-0-0.} Bb4+ {[%emt 0:00:19]} 14. Bd2 {[%emt 0:01:42]} Bxd2+ {[%emt 0:01:07]} (14... Bxc4 $2 15. Qxc4 Qxe5+ 16. Qe2 Qxe2+ 17. Kxe2 $18) 15. Qxd2 {[%emt 0:00:06] Threatens to win with Qc3.} Bxc4 {[%emt 0:00:37]} 16. Bxc4 {[%emt 0:00:44]} Qxc4 {[%emt 0:00:11]} 17. Qe2 {[%emt 0:04:09] Prevents Qe4.} ({White should play} 17. f4) 17... Qxe2+ $17 {[%emt 0:02:13]} 18. Kxe2 {[%emt 0:00:05][%mdl 4096] Endgame KRR-KRR} Rb8 {[%emt 0:00:16]} 19. b3 {[%emt 0:00:04]} Ke7 {[%emt 0:01:05]} 20. Rhd1 {[%emt 0:02:05]} Rb4 {[%emt 0:05:39]} 21. f4 {[%emt 0:03:21]} f6 {[%emt 0:07:01]} ({Black should try} 21... Rhb8 $17 22. Rd3 d5 23. exd6+ cxd6 24. Re3+ Kd7) 22. exf6+ $15 {[%emt 0:06:38]} gxf6 {[%emt 0:00:10]} 23. Rd3 {[%emt 0:00:19]} d6 {[%emt 0:08:34][%cal Bd7d6,Bd6d5,Bd5d4][%mdl 32]} 24. Kf3 {[%emt 0:01:57]} f5 {[%emt 0:00:43]} (24... Kd7 $17 {With the idea ...a4.} 25. a3 Rb5) 25. Re1+ $11 {[%emt 0:04:13]} Kd8 {[%emt 0:03:57]} 26. Rde3 {[%emt 0:00:39]} (26. Re5 $11) 26... d5 $15 {[%emt 0:02:41]} 27. Rc3 {[%emt 0:03:06]} a4 {[%emt 0:07:27]} 28. bxa4 {[%emt 0:04:14]} Rxa4 {[%emt 0:01:18]} 29. Rec1 {[%emt 0:01:18]} d4 {[%emt 0:16:57]} 30. Rxc6 {[%emt 0:12:02] The position is equal.} Re8 {[%emt 0:06:47]} 31. Rxc7 {[%emt 0:06:04]} Re3+ {[%emt 0:00:18]} 32. Kf2 {[%emt 0:00:06]} Rxa2+ {[%emt 0:00:07]} 33. R7c2 {[%emt 0:00:43]} Raa3 {[%emt 0:00:59]} 34. Rc8+ {[%emt 0:12:45]} Kd7 {[%emt 0:00:06] ...Rf3+ is the strong threat.} 35. R1c7+ {[%emt 0:00:08]} Kd6 {[%emt 0:00:10] [#] Strongly threatening ...Rf3+.} 36. Rc6+ {[%emt 0:00:03]} Kd5 {[%emt 0:00:47]} 37. Rc5+ {[%emt 0:00:07]} Ke4 {[%emt 0:00:45]} 38. Re5+ {[%emt 0:00:46]} Kd3 {[%emt 0:00:11] And now ...Ra2+ would win.} 39. Rxe3+ {[%emt 0:00:00]} dxe3+ {[%emt 0:00:09]} 40. Kf3 {[%emt 0:00:00]} Kd2 {[%emt 0:04:12] ( -> ...e2+)} 41. Re8 {[%emt 0:31:02]} ({Avoid the trap} 41. Rd8+ $2 Ke1 42. h5 (42. Re8 $2 e2+ 43. Kg2 Rd3 $19) 42... e2+ 43. Kg2 Ra2 $19) 41... h5 {[%emt 0:13:00]} 42. Re7 {[%emt 0:00:00]} Rd3 {[%emt 0:00:50]} 43. Re8 {[%emt 0:00:00] Black had all chances to win.  Weighted Error Value: White=0.13 (very precise) /Black=0.16 (very precise)} 1/2-1/2

[Event "FIDE CB Open 2022"]
[Site "Ceske Budejovice"]
[Date "2022.07.06"]
[Round "6.21"]
[White "Hofstadler, Mario"]
[Black "Zezula, Jakub"]
[Result "1/2-1/2"]
[ECO "E09"]
[WhiteElo "2123"]
[BlackElo "1831"]
[Annotator "TA"]
[PlyCount "39"]
[EventDate "2022.07.01"]
[EventType "swiss"]
[EventCountry "CZE"]
[SourceTitle "playchess.com"]
[Source "ChessBase"]
[SourceQuality "1"]
[TimeControl "40/5400+30:1800+30"]

{[%evp 23,39,32,37,37,46,36,56,45,49,0,0,0,0,-7,0,0,0,0]} 1. Nf3 {[%emt 0:00:07]} d5 {[%emt 0:00:14]} 2. g3 {[%emt 0:00:08]} Nf6 {[%emt 0:00:12]} 3. Bg2 {[%emt 0:00:08]} c6 {[%emt 0:01:00]} 4. c4 {[%emt 0:01:47]} e6 {[%emt 0:02:32]} 5. d4 {[%emt 0:01:19]} Be7 {[%emt 0:01:11]} 6. O-O {[%emt 0:00:14]} O-O {[%emt 0:01:12]} 7. Qc2 {[%emt 0:00:37]} Nbd7 {[%emt 0:04:28]} 8. Nbd2 {[%emt 0:00:54]} b6 {[%emt 0:02:40]} 9. e4 {[%emt 0:00:46]} dxe4 {[%emt 0:10:07]} 10. Nxe4 {[%emt 0:00:16]} Bb7 {[%emt 0:00:34]} 11. Nxf6+ {[%emt 0:33:17]} Nxf6 {[%emt 0:00:19]} 12. Rd1 {[%emt 0:00:29]} Qc8 {[%emt 0:03:41]} 13. c5 {[%emt 0:04:37] E09: Closed Catalan: Main Line: 7 Qc2 c6 8 Nbd2.} bxc5 {[%emt 0:03:11]} 14. dxc5 {[%emt 0:00:12]} h6 {[%emt 0:01:14] [#]} 15. Bf4 $146 {[%emt 0:06:49] White is slightly better.} ({Predecessor:} 15. b3 Nd5 16. Bb2 Qc7 17. Ne5 Bf6 18. Nc4 Bxb2 19. Qxb2 Qe7 20. Nd6 Rab8 21. Rd2 {1-0 (31) Wendt,J (2357)-Guenther,T (2085) Berlin 2012}) 15... Nd5 {[%emt 0:08:04]} 16. Nd2 {[%emt 0:08:56]} (16. Rac1 $14 {deserves consideration.}) 16... Nxf4 $11 {[%emt 0:05:54] The position is equal.} 17. gxf4 {[%emt 0:00:09]} Qc7 {[%emt 0:11:09]} 18. Nf3 $1 {[%emt 0:02:25]} Rad8 {[%emt 0:04:26]} (18... Qxf4 $2 19. Rd7 $18) 19. Ne5 {[%emt 0:00:47]} Bf6 {[%emt 0:07:11]} 20. Qc3 {[%emt 0:05:40] Weighted Error Value: White=0.09 (flawless) /Black=0.06 (flawless)} 1/2-1/2